bitfinex/quotes_SOLUSD_20250207
["timestamp","ask_amount","ask_price","bid_price","bid_amount"]
[1738923219866,18.569705,197.0,196.98,0.26]
[1738923220443,18.569705,197.0,196.97,0.26]
[1738923220655,18.569705,196.99,196.97,0.26]
[1738923220979,23.645905,197.0,196.98,0.26]
[1738923221761,18.569705,196.99,196.96,0.26]
[1738923221966,18.569705,196.98,196.95,137.1999]
[1738923222169,18.569705,196.97,196.95,137.1999]
[1738923222550,18.569705,196.97,196.95,0.03]
[1738923223274,23.646605,196.97,196.95,0.29]
[1738923223770,18.569705,196.98,196.97,0.26]
[1738923224069,18.569705,197.02,197.0,0.26]
[1738923224258,18.569705,197.02,196.99,0.26]
[1738923224564,18.569705,197.01,196.99,0.26]
[1738923224771,18.569705,197.01,196.98,0.26]
[1738923226173,18.569705,197.01,196.99,0.26]
[1738923226511,18.569705,197.02,197.0,0.26]
[1738923226649,18.569705,197.03,197.0,0.26]
[1738923226851,18.569705,197.02,197.0,0.26]
[1738923227580,18.569705,197.01,197.0,0.26]
[1738923227778,18.569705,197.01,196.98,0.26]
[1738923227974,18.569705,197.0,196.97,137.4299]
[1738923228569,18.569705,196.99,196.98,0.26]
[1738923228763,18.569705,197.0,196.97,137.4299]
[1738923229164,18.569705,197.0,196.98,0.26]
[1738923230078,18.569705,196.99,196.97,137.1699]
[1738923230378,18.569705,196.98,196.95,0.29]
[1738923230589,5.0762,197.0,196.95,0.29]
[1738923230590,18.569705,196.97,196.95,0.29]
[1738923230961,18.569705,196.98,196.96,0.26]
[1738923231177,18.569705,196.98,196.95,0.29]
[1738923231377,23.646405,196.98,196.95,0.29]
[1738923231878,23.646405,196.98,196.96,0.26]
[1738923232386,23.646405,196.98,196.95,0.29]
[1738923232700,18.569705,197.03,197.0,0.26]
[1738923232984,18.569705,197.02,196.99,0.26]
[1738923233157,18.569705,197.01,196.99,0.26]
[1738923233363,18.569705,197.01,197.0,0.26]
[1738923233573,18.569705,197.01,196.99,0.26]
[1738923233777,18.569705,197.0,196.98,0.26]
[1738923234085,0.063,196.99,196.98,0.26]
[1738923234777,18.632705,196.99,196.98,0.26]
[1738923235587,23.709105,196.99,196.97,0.26]
[1738923236659,17.02358831,196.99,196.98,0.26]
[1738923236859,0.063,196.99,196.98,0.26]
[1738923246093,0.063,196.99,196.98,235.99068831]
[1738923246469,0.063,196.99,196.98,236.02068831]
[1738923249286,11.94718831,196.99,196.98,0.03]
[1738923250113,25.61001684,196.99,196.98,0.03]
[1738923250715,34.52831853,196.96,196.95,0.03]
[1738923251079,11.88418831,196.91,196.9,0.03]
[1738923251281,16.96258831,196.91,196.9,0.03]
[1738923252793,23.66614603,196.91,196.9,0.03]
[1738923254823,18.58728102,196.91,196.9,0.03]
[1738923256616,23.66568102,196.91,196.9,0.03]
[1738923258212,18.58538315,196.91,196.9,0.03]
[1738923259621,23.66298315,196.94,196.9,0.29]
[1738923259925,23.66298315,196.94,196.91,0.26]
[1738923260246,18.58538315,196.94,196.91,0.26]
[1738923260695,23.72578315,196.95,196.91,0.26]
[1738923260897,18.58538315,196.94,196.91,0.26]
[1738923261217,23.72578315,196.95,196.92,0.26]
[1738923263818,5.1404,196.95,196.93,0.26]
[1738923264232,5.1404,196.95,196.92,0.26]
[1738923264441,5.1404,196.95,196.9,137.1999]
[1738923264442,18.58538315,196.93,196.9,137.1999]
[1738923264610,18.58538315,196.91,196.9,0.03]
[1738923266035,23.66378315,196.91,196.9,0.03]
[1738923268440,37.32661168,196.91,196.9,0.03]
[1738923274635,30.63767973,196.91,196.9,0.03]
[1738923275020,16.9748512,196.91,196.9,0.03]
[1738923276640,30.63767973,196.91,196.9,0.03]
[1738923276943,78.22348453,196.91,196.9,0.03]
[1738923277126,80.08897453,196.91,196.9,0.0001]
[1738923278443,80.08897453,196.91,196.86,0.0001]
[1738923278444,22.57218,196.87,196.86,0.0001]
[1738923278645,53.95987973,196.87,196.86,0.0001]
[1738923279140,0.25098,196.82,196.81,0.03]
[1738923279335,25.55927973,196.82,196.81,0.03]
[1738923280418,30.63997973,196.82,196.81,0.03]
[1738923289650,11.8964512,196.82,196.81,0.29]
[1738923289835,16.9771512,196.82,196.81,0.29]
[1738923290256,16.9771512,196.82,196.81,0.03]
[1738923290457,16.9771512,196.82,196.81,0.29]
[1738923293052,16.9771512,196.82,196.81,0.03]
[1738923294952,16.9771512,196.82,196.81,0.29]
[1738923296071,5.0807,196.82,196.81,0.29]
[1738923296572,17.0398512,196.84,196.83,0.26]
[1738923296871,5.1434,196.84,196.83,0.26]
[1738923297757,5.1434,196.84,196.81,0.03]
[1738923297758,17.0398512,196.84,196.81,0.29]
[1738923297953,11.8964512,196.83,196.81,0.03]
[1738923298673,11.8964512,196.83,196.81,0.29]
[1738923298884,11.8964512,196.83,196.81,0.03]
[1738923299052,11.8964512,196.83,196.81,0.29]
[1738923299955,11.8964512,196.83,196.82,0.26]
[1738923300558,17.0398512,196.84,196.82,0.26]
[1738923300873,17.0398512,196.84,196.83,0.26]
[1738923301050,17.0398512,196.84,196.82,0.26]
[1738923301251,17.0398512,196.84,196.83,0.26]
[1738923301975,0.063,196.84,196.83,0.26]
[1738923303058,17.0396512,196.84,196.82,0.26]
[1738923303265,17.0396512,196.84,196.83,0.26]
[1738923303459,5.1432,196.84,196.83,0.26]
[1738923303775,0.063,196.84,196.83,0.26]
[1738923305077,0.063,196.84,196.83,219.0299]
[1738923306379,0.063,196.84,196.83,230.9263512]
[1738923306683,0.063,196.84,196.83,242.5085512]
[1738923306857,0.063,196.84,196.83,242.5385512]
[1738923307763,0.063,196.84,196.83,105.3686512]
[1738923308463,0.063,196.84,196.83,242.8196312]
[1738923308758,0.063,196.84,196.83,243.8196312]
[1738923309275,11.9594512,196.95,196.94,0.26]
[1738923309465,0.063,196.95,196.94,0.26]
[1738923317092,11.9594512,196.95,196.94,0.26]
[1738923317799,17.0368512,196.95,196.94,0.26]
[1738923319690,0.063,196.95,196.94,0.26]
[1738923326572,0.063,196.95,196.94,81.86]
[1738923332870,0.063,196.95,196.94,230.9564512]
[1738923334510,0.063,196.95,196.94,219.06]
[1738923335886,11.9594512,196.95,196.94,0.26]
[1738923337707,17.0368512,196.95,196.94,0.26]
[1738923339200,17.0368512,196.95,196.91,137.2]
[1738923339394,11.8964512,196.92,196.91,137.2]
[1738923340394,16.9746512,196.92,196.91,137.2]
[1738923341307,16.9746512,196.92,196.88,0.26]
[1738923341497,11.8964512,196.89,196.87,0.26]
[1738923341703,5.0782,196.92,196.86,81.86]
[1738923341704,11.8964512,196.88,196.86,81.86]
[1738923342101,17.7737,196.92,196.85,0.26]
[1738923342102,11.8964512,196.87,196.85,0.26]
[1738923342412,11.8964512,196.86,196.84,0.03]
[1738923342706,60.99765333,196.9,196.84,0.29]
[1738923342707,11.8964512,196.85,196.84,0.29]
[1738923342907,11.8964512,196.85,196.84,0.03]
[1738923343103,11.8964512,196.85,196.84,0.29]
[1738923343487,16.9764512,196.85,196.84,0.29]
[1738923345597,16.9764512,196.85,196.84,0.03]
[1738923347115,16.9764512,196.85,196.84,0.29]
[1738923347712,16.9764512,196.85,196.84,0.03]
[1738923348811,5.08,196.85,196.84,0.03]
[1738923348984,5.08,196.85,196.84,0.29]
[1738923349312,11.8964512,196.9,196.86,0.26]
[1738923349490,5.079,196.89,196.88,0.26]
[1738923349911,0.25098,196.91,196.84,0.03]
[1738923349912,5.0784,196.91,196.9,0.26]
[1738923351026,16.9743512,196.93,196.9,0.26]
[1738923351308,16.9743512,196.93,196.91,0.26]
[1738923352215,5.0779,196.93,196.92,0.26]
[1738923352518,5.0777,196.94,196.93,0.26]
[1738923353308,0.063,196.95,196.94,0.26]
[1738923359126,0.063,196.95,196.93,0.26]
[1738923359127,11.9594512,196.95,196.93,0.26]
[1738923359322,11.8964512,196.94,196.93,0.26]
[1738923360218,0.063,196.95,196.93,0.26]
[1738923360514,0.063,196.95,196.94,0.26]
[1738923362121,0.063,196.95,196.94,12.1564512]
[1738923362794,0.063,196.95,196.94,237.04649302]
[1738923362992,0.063,196.95,196.94,237.2850312]
[1738923363193,0.063,196.95,196.94,236.2850312]
[1738923364106,0.063,196.95,196.94,237.2850312]
[1738923364301,0.0001,196.95,196.94,253.2184992]
[1738923364505,0.0001,196.95,196.94,254.8247992]
[1738923365916,0.0001,196.95,196.94,237.8913312]
[1738923366297,0.0001,196.95,196.94,238.8913312]
[1738923366600,0.0001,196.95,196.94,254.7935034]
[1738923367515,0.0001,196.95,196.94,253.7935034]
[1738923370321,0.063,196.99,196.98,0.26]
[1738923370622,0.063,196.99,196.98,231.71758736]
[1738923370919,0.063,196.99,196.98,230.9564512]
[1738923372023,0.063,196.99,196.98,236.0330512]
[1738923373125,0.063,196.99,196.98,219.06]
[1738923374120,0.063,196.99,196.98,81.86]
[1738923375836,0.063,196.99,196.98,98.8330512]
[1738923380048,0.063,196.99,196.98,236.0330512]
[1738923381622,0.063,196.99,196.98,230.9564512]
[1738923381824,0.063,196.99,196.98,81.86]
[1738923383122,17.0357512,196.99,196.98,81.86]
[1738923384250,17.0357512,196.99,196.98,81.6]
[1738923384457,17.0357512,196.99,196.98,81.86]
[1738923386243,0.063,196.99,196.98,81.86]
[1738923387949,5.1393,196.99,196.98,81.86]
[1738923388149,5.1393,196.99,196.98,81.6]
[1738923388347,17.0357512,196.99,196.98,81.86]
[1738923388728,17.0357512,196.99,196.98,81.6]
[1738923389030,17.0357512,196.99,196.95,81.86]
[1738923389237,11.8964512,196.98,196.95,81.86]
[1738923389557,11.8964512,196.98,196.95,81.89]
[1738923389751,11.8964512,196.98,196.96,0.26]
[1738923389960,11.8964512,196.98,196.95,81.89]
[1738923390150,16.9733512,196.97,196.95,81.63]
[1738923391155,16.9733512,196.97,196.96,0.26]
[1738923391755,11.8964512,196.98,196.97,0.26]
[1738923391963,5.1393,196.99,196.98,0.26]
[1738923392143,17.0357512,196.99,196.97,0.26]
[1738923392332,17.0357512,196.99,196.98,0.26]
[1738923393757,0.063,196.99,196.98,0.26]
[1738923394147,5.1393,196.99,196.98,0.26]
[1738923394563,17.0357512,196.99,196.96,0.26]
[1738923394734,11.8964512,196.98,196.96,0.26]
[1738923395436,5.0769,196.97,196.96,0.26]
[1738923395632,5.0769,196.97,196.95,0.03]
[1738923395837,11.8964512,196.96,196.95,0.03]
[1738923397034,5.0769,196.97,196.96,0.26]
[1738923397344,5.0769,196.97,196.95,0.29]
[1738923397544,5.0769,196.97,196.96,0.26]
[1738923400045,11.9594512,196.99,196.96,0.26]
[1738923400240,0.063,196.99,196.98,0.26]
[1738923400861,5.0761,197.0,196.98,0.26]
[1738923401063,5.0761,197.0,196.99,0.26]
[1738923401663,0.063,197.02,197.01,0.26]
[1738923402833,0.063,197.02,197.01,93.7564512]
[1738923403034,0.063,197.02,197.01,230.9564512]
[1738923404565,0.063,197.02,197.01,236.0322512]
[1738923404759,0.063,197.02,197.01,230.9564512]
[1738923406356,0.063,197.02,197.01,219.06]
[1738923406565,0.063,197.02,197.01,0.26]
[1738923406738,11.9594512,197.02,196.99,0.26]
[1738923406939,0.063,197.02,197.0,0.26]
[1738923407433,0.063,197.02,196.99,0.26]
[1738923407639,11.8964512,197.0,196.98,0.26]
[1738923407841,11.8964512,196.99,196.97,0.26]
[1738923408261,11.8964512,196.99,196.98,0.26]
[1738923408474,16.9730512,196.99,196.96,81.6]
[1738923408766,18.57192166,196.98,196.96,81.86]
[1738923408975,18.57192166,196.97,196.95,0.03]
[1738923409274,18.57192166,196.96,196.95,0.03]
[1738923410467,23.64902166,196.96,196.95,0.03]
[1738923414272,18.57192166,196.97,196.95,0.03]
[1738923415862,23.64902166,196.97,196.95,0.03]
[1738923416871,23.64902166,196.97,196.95,0.29]
[1738923419266,18.57192166,196.96,196.95,0.29]
[1738923419441,23.64902166,196.97,196.95,0.29]
[1738923420272,23.64902166,196.97,196.96,0.26]
[1738923420470,23.64902166,196.97,196.95,0.29]
[1738923421373,5.0771,196.97,196.95,0.03]
[1738923421554,32.23475019,196.96,196.95,0.03]
[1738923422052,0.12549,196.92,196.89,81.6]
[1738923422250,18.82290166,196.9,196.86,0.26]
[1738923422450,18.57192166,196.88,196.86,0.26]
[1738923422760,18.57192166,196.88,196.87,0.26]
[1738923423273,23.65092166,196.89,196.87,0.26]
[1738923423978,23.65092166,196.89,196.85,0.26]
[1738923424273,18.57192166,196.88,196.85,0.26]
[1738923424475,18.57192166,196.88,196.86,0.26]
[1738923424845,18.57192166,196.88,196.85,0.26]
[1738923425384,18.57192166,196.88,196.84,0.29]
[1738923425568,18.57192166,196.88,196.85,0.26]
[1738923425774,18.57192166,196.9,196.88,0.26]
[1738923425963,5.0787,196.91,196.86,0.26]
[1738923425964,18.57192166,196.89,196.86,0.26]
[1738923427165,23.65092166,196.89,196.85,0.26]
[1738923427367,18.57192166,196.88,196.84,0.29]
[1738923427581,5.32998,196.89,196.84,0.03]
[1738923427582,18.57192166,196.86,196.84,0.03]
[1738923428955,32.23475019,196.85,196.84,0.03]
[1738923429260,18.74302853,196.84,196.83,0.03]
[1738923429460,37.34949701,196.84,196.83,0.03]
[1738923429658,38.21498701,196.84,196.83,0.03]
[1738923431554,53.26929701,196.82,196.81,0.03]
[1738923431977,52.26929701,196.82,196.81,0.03]
[1738923432364,52.39478701,196.82,196.81,0.03]
[1738923432561,53.13478701,196.82,196.81,0.03]
[1738923432766,54.13478701,196.82,196.81,0.03]
[1738923433165,54.14241785,196.82,196.81,0.03]
[1738923433368,14.52831853,196.8,196.79,0.03]
[1738923433576,56.83781717,196.8,196.79,0.03]
[1738923434602,57.83781717,196.8,196.79,0.03]
[1738923435266,37.48371785,196.8,196.79,0.03]
[1738923442580,30.78153531,196.8,196.79,0.03]
[1738923443994,80.16920243,196.8,196.78,0.03]
[1738923444194,27.44023531,196.79,196.78,0.0001]
[1738923444900,25.70023531,196.79,196.78,0.0001]
[1738923445195,25.57474531,196.79,196.78,0.0001]
[1738923445996,30.78173531,196.79,196.78,0.0001]
[1738923448601,31.78173531,196.79,196.78,0.0001]
[1738923448809,30.78173531,196.79,196.78,0.0001]
[1738923450602,33.66282853,196.76,196.75,0.03]
[1738923450901,47.44023531,196.76,196.75,0.0001]
[1738923451280,46.70023531,196.76,196.75,0.0001]
[1738923451497,45.70023531,196.76,196.75,0.0001]
[1738923452792,30.65704531,196.76,196.75,0.0001]
[1738923454708,43.69941319,196.76,196.75,0.2601]
[1738923454913,43.69941319,196.76,196.75,0.0001]
[1738923456091,23.69941319,196.76,196.75,0.2601]
[1738923456296,5.0823,196.76,196.75,0.2601]
[1738923457020,5.0823,196.76,196.75,0.0001]
[1738923457216,37.36224172,196.76,196.75,0.0001]
[1738923457604,37.48773172,196.76,196.75,0.0001]
[1738923458619,38.48773172,196.76,196.75,0.0001]
[1738923458818,13.78831853,196.75,196.74,0.0001]
[1738923459115,32.40543172,196.75,196.74,0.0001]
[1738923460421,37.48793172,196.75,196.74,0.0001]
[1738923461234,37.36244172,196.75,196.74,0.0001]
[1738923461524,23.95059319,196.75,196.74,0.0001]
[1738923461710,37.48793172,196.75,196.74,0.0001]
[1738923464106,37.36244172,196.75,196.74,0.0001]
[1738923466635,5.0825,196.75,196.74,0.2601]
[1738923466813,0.063,196.76,196.75,0.26]
[1738923467123,5.1453,196.76,196.75,0.26]
[1738923467515,0.063,196.76,196.75,0.26]
[1738923468327,37.55073172,196.76,196.74,0.0001]
[1738923468630,24.07608319,196.75,196.74,0.0001]
[1738923474041,37.48793172,196.75,196.74,0.0001]
[1738923474643,39.22793172,196.75,196.74,0.0001]
[1738923477836,37.48793172,196.75,196.74,0.0001]
[1738923480314,23.95059319,196.75,196.74,0.0001]
[1738923480630,5.1453,196.76,196.74,0.2601]
[1738923480826,5.1453,196.76,196.75,0.26]
[1738923481762,23.76241319,196.76,196.75,0.26]
[1738923483549,0.063,196.76,196.75,18.87711319]
[1738923483844,0.063,196.76,196.75,23.95961319]
[1738923484043,0.063,196.76,196.75,18.87711319]
[1738923484225,0.063,196.76,196.75,0.26]
[1738923487030,0.063,196.76,196.75,18.87711319]
[1738923487526,0.063,196.76,196.75,0.26]
[1738923488149,0.063,196.76,196.75,161.15961319]
[1738923489049,0.063,196.81,196.8,0.26]
[1738923489261,0.063,196.81,196.8,26.53641319]
[1738923489764,0.063,196.81,196.8,265.95352638]
[1738923491137,0.063,196.81,196.8,271.03482638]
[1738923496073,0.063,196.81,196.8,252.41771319]
[1738923497066,0.063,196.81,196.8,231.8006]
[1738923498172,0.063,196.81,196.8,94.6006]
[1738923498546,0.063,196.81,196.8,88.0136]
[1738923499271,0.063,196.81,196.8,0.26]
[1738923499446,18.68011319,196.81,196.8,0.26]
[1738923499638,0.063,196.81,196.8,0.26]
[1738923500674,0.063,196.81,196.8,5.3413]
[1738923500842,0.063,196.81,196.8,23.95841319]
[1738923501045,0.063,196.81,196.8,161.15841319]
[1738923501973,0.063,196.81,196.8,162.15841319]
[1738923502344,0.063,196.81,196.8,189.67712638]
[1738923502674,0.0001,196.81,196.8,189.67712638]
[1738923503453,0.0001,196.81,196.8,271.27712638]
[1738923505270,0.0001,196.81,196.8,272.56612955]
[1738923507065,0.0001,196.81,196.8,252.94901636]
[1738923507472,0.0001,196.81,196.8,250.66001319]
[1738923507769,0.0001,196.81,196.8,237.67711319]
[1738923508072,0.0001,196.81,196.8,0.26]
[1738923510445,0.0001,196.81,196.8,23.95841319]
[1738923513748,0.0001,196.81,196.8,242.75841319]
[1738923514085,0.0001,196.81,196.8,219.06]
[1738923514368,0.0001,196.81,196.8,0.26]
[1738923515483,0.0001,196.81,196.8,5.3413]
[1738923515646,0.0001,196.81,196.8,23.95841319]
[1738923515846,0.0001,196.81,196.8,242.75841319]
[1738923517368,18.61711319,196.92,196.91,0.26]
[1738923517571,25.30901319,196.93,196.92,0.26]
[1738923517960,25.43450319,196.93,196.92,0.26]
[1738923519557,20.23111319,196.93,196.92,0.26]
[1738923519769,1.614,196.93,196.92,0.26]
[1738923520172,0.063,196.96,196.92,0.26]
[1738923520367,0.063,196.96,196.95,0.26]
[1738923524748,0.063,196.96,196.95,23.95451319]
[1738923526782,0.063,196.96,196.95,243.51586973]
[1738923526958,0.063,196.96,196.95,242.75451319]
[1738923527687,0.063,196.96,196.95,219.06]
[1738923527902,0.063,196.96,196.95,81.86]
[1738923535687,18.68011319,196.96,196.95,0.26]
[1738923538068,0.063,196.96,196.95,0.26]
[1738923539598,0.063,196.96,196.95,23.95451319]
[1738923540070,0.063,196.96,196.95,5.3374]
[1738923540390,0.063,196.96,196.95,86.9374]
[1738923540777,0.063,196.96,196.95,81.86]
[1738923542068,18.68011319,196.96,196.95,81.86]
[1738923542465,0.063,196.96,196.95,81.86]
[1738923543092,0.063,196.96,196.95,105.55451319]
[1738923543581,0.063,196.96,196.95,242.75451319]
[1738923544999,0.063,196.96,196.95,219.06]
[1738923545889,0.063,196.96,196.95,237.67711319]
[1738923546194,0.063,196.96,196.95,242.75451319]
[1738923548892,0.063,196.96,196.95,243.75451319]
[1738923549063,0.063,197.01,197.0,0.26]
[1738923549267,0.063,197.01,197.0,238.438239]
[1738923549468,0.063,197.01,197.0,237.67711319]
[1738923549894,0.063,197.01,197.0,242.75321319]
[1738923551995,0.063,197.01,197.0,237.67711319]
[1738923552403,0.063,197.01,197.0,100.47711319]
[1738923554203,0.063,197.01,197.0,105.55321319]
[1738923554578,0.063,197.01,197.0,100.47711319]
[1738923554904,0.063,197.01,197.0,81.86]
[1738923566206,0.063,197.01,197.0,100.47711319]
[1738923567890,0.063,197.01,197.0,105.55321319]
[1738923570116,0.063,197.01,197.0,242.75321319]
[1738923572516,0.063,197.01,197.0,243.75321319]
[1738923572708,0.063,197.01,197.0,237.00716185]
[1738923572906,0.063,197.1,197.09,0.26]
[1738923581813,5.1365,197.1,197.09,0.26]
[1738923582498,0.063,197.1,197.09,0.26]
[1738923586011,18.60534378,197.1,197.08,0.26]
[1738923586324,18.54234378,197.09,197.08,0.26]
[1738923586902,18.54234378,197.09,197.07,0.26]
[1738923587099,18.54234378,197.08,197.07,0.26]
[1738923587426,5.074,197.08,197.07,0.26]
[1738923588904,23.61634378,197.08,197.07,0.26]
[1738923589519,23.61634378,197.08,197.05,0.26]
[1738923589726,18.54234378,197.06,197.04,0.26]
[1738923589932,23.61634378,197.08,197.06,0.26]
[1738923591123,23.61634378,197.08,197.07,0.26]
[1738923591301,23.61634378,197.08,197.05,0.26]
[1738923591723,18.54234378,197.07,197.06,0.26]
[1738923592931,18.54234378,197.07,197.05,0.26]
[1738923593626,23.61664378,197.07,197.05,0.26]
[1738923593928,18.54234378,197.06,197.04,0.26]
[1738923594123,18.54234378,197.06,197.03,0.26]
[1738923594332,18.54234378,197.06,197.04,0.26]
[1738923594633,12.00305894,197.06,197.04,0.26]
[1738923595328,12.00305894,197.06,197.03,0.26]
[1738923595504,5.0748,197.05,197.04,0.26]
[1738923596034,5.0748,197.05,197.03,0.26]
[1738923597331,16.95236894,197.05,197.03,0.26]
[1738923597529,16.95236894,197.05,197.04,0.26]
[1738923597719,5.0748,197.05,197.04,0.26]
[1738923600440,16.95236894,197.05,197.03,0.26]
[1738923600645,12.00305894,197.04,197.01,0.03]
[1738923600945,11.87756894,197.02,197.01,0.03]
[1738923601436,11.87756894,197.02,197.0,0.03]
[1738923601437,0.12549,197.01,197.0,0.03]
[1738923601645,12.00305894,197.01,197.0,0.03]
[1738923601814,11.87756894,197.01,197.0,0.03]
[1738923602018,11.87756894,197.01,197.0,0.29]
[1738923602220,11.87756894,197.01,197.0,0.03]
[1738923602427,25.66588747,197.01,197.0,0.03]
[1738923602730,32.27438747,197.01,197.0,0.0001]
[1738923606948,18.48606894,197.01,197.0,0.2601]
[1738923607441,5.0758,197.01,197.0,0.2601]
[1738923607617,16.95336894,197.01,197.0,0.2601]
[1738923609320,13.53733853,197.04,197.0,0.2601]
[1738923609321,5.0755,197.03,197.01,0.26]
[1738923609520,16.95236894,197.05,197.03,0.26]
[1738923609720,11.87756894,197.04,197.02,0.26]
[1738923609935,11.87756894,197.04,197.03,0.26]
[1738923610444,16.95236894,197.05,197.04,0.26]
[1738923610640,5.0744,197.07,197.05,0.26]
[1738923610819,5.0744,197.07,197.06,0.26]
[1738923611945,11.94056894,197.09,197.06,0.26]
[1738923612239,17.01436894,197.09,197.06,0.26]
[1738923613846,5.1368,197.09,197.08,0.26]
[1738923614033,17.01436894,197.09,197.08,0.26]
[1738923615247,5.1368,197.09,197.08,0.26]
[1738923615439,0.063,197.09,197.08,0.26]
[1738923616357,11.94056894,197.09,197.08,0.26]
[1738923616530,17.01436894,197.09,197.08,0.26]
[1738923616839,5.1368,197.09,197.08,0.26]
[1738923617442,0.063,197.09,197.08,0.26]
[1738923627669,0.063,197.09,197.08,12.13756894]
[1738923628166,0.063,197.09,197.08,0.26]
[1738923632563,0.063,197.09,197.08,81.86]
[1738923634164,0.063,197.09,197.08,236.7725361]
[1738923634340,0.063,197.1,197.09,0.26]
[1738923634542,0.063,197.1,197.09,278.4478447]
[1738923635260,0.063,197.1,197.09,295.89795323]
[1738923635456,0.063,197.1,197.09,300.97175323]
[1738923635655,0.063,197.16,197.14,0.26]
[1738923635839,0.063,197.16,197.14,230.93756894]
[1738923636944,0.063,197.16,197.14,231.93756894]
[1738923637148,0.063,197.16,197.14,244.60314894]
[1738923639039,0.063,197.19,197.18,22.51098]
[1738923639381,0.063,197.22,197.2,0.26]
[1738923639571,0.063,197.22,197.2,62.40815206]
[1738923639752,0.063,197.22,197.2,281.20815206]
[1738923640078,0.063,197.22,197.2,280.4478447]
[1738923640287,0.063,197.22,197.2,292.2303047]
[1738923640665,0.063,197.22,197.2,283.26579105]
[1738923641082,0.063,197.22,197.2,269.60296252]
[1738923641280,0.063,197.22,197.2,248.84624126]
[1738923642177,0.063,197.22,197.2,251.09722126]
[1738923642357,0.063,197.22,197.2,268.60296252]
[1738923642695,0.063,197.22,197.2,283.26579105]
[1738923642978,0.063,197.22,197.21,2.51098]
[1738923643180,0.063,197.22,197.21,21.77686509]
[1738923643684,0.063,197.22,197.21,19.77686509]
[1738923644068,0.063,197.22,197.21,20.77686509]
[1738923644370,0.063,197.22,197.21,25.84756509]
[1738923644571,0.063,197.22,197.21,161.79658509]
[1738923644866,0.063,197.22,197.21,161.03644126]
[1738923645187,0.063,197.22,197.21,162.28742126]
[1738923645764,0.063,197.22,197.21,161.28742126]
[1738923645962,0.063,197.22,197.21,162.28742126]
[1738923646183,0.063,197.22,197.21,161.28742126]
[1738923646367,0.063,197.22,197.21,162.28742126]
[1738923647182,0.063,197.22,197.21,163.28742126]
[1738923647490,0.063,197.22,197.21,162.28742126]
[1738923648363,0.063,197.22,197.21,163.28742126]
[1738923648561,0.063,197.22,197.21,162.28742126]
[1738923649087,0.063,197.29,197.28,0.26]
[1738923649294,0.063,197.29,197.28,237.56574126]
[1738923651476,0.063,197.29,197.28,242.63464126]
[1738923652790,0.063,197.29,197.28,237.56574126]
[1738923656289,0.063,197.29,197.28,242.63464126]
[1738923658492,0.063,197.29,197.28,237.56574126]
[1738923658880,0.063,197.29,197.28,242.63464126]
[1738923662681,0.063,197.29,197.28,235.96814727]
[1738923665100,0.063,197.29,197.28,236.96814727]
[1738923665401,5.0954,197.42,197.41,0.26]
[1738923666376,16.93464727,197.42,197.38,0.26]
[1738923666578,0.03,197.42,197.41,0.26]
[1738923666785,0.03,197.42,197.41,12.09924727]
[1738923667874,0.03,197.42,197.41,149.29924727]
[1738923668382,0.03,197.49,197.48,0.26]